[Event "*** Titled Tuesday Blitz"]
[Site "Chess.com"]
[Date "2021.04.06"]
[Round "10"]
[White "Valeron87"]
[Black "ChampStan"]
[Result "1-0"]
[WhiteElo "2279"]
[BlackElo "2044"]
[TimeControl "180+1"]
[EndTime "11:54:09 PDT"]
[Termination "Valeron87 won by resignation"]

1. e4 {[%clk 0:02:59.4]} 1... e5 {[%clk 0:02:58]} 2. Nf3 {[%clk 0:02:58.2]} 2...
Nc6 {[%clk 0:02:57.4]} 3. Nc3 {[%clk 0:02:58.1]} 3... Nf6 {[%clk 0:02:56.7]} 4.
g3 {[%clk 0:02:58.1]} 4... d5 {[%clk 0:02:47.9]} 5. exd5 {[%clk 0:02:57.2]} 5...
Nxd5 {[%clk 0:02:48.4]} 6. Bg2 {[%clk 0:02:57.5]} 6... Nxc3 {[%clk 0:02:47.7]}
7. bxc3 {[%clk 0:02:58.4]} 7... Bc5 {[%clk 0:02:46.9]} 8. O-O {[%clk 0:02:58]}
8... O-O {[%clk 0:02:46.9]} 9. d3 {[%clk 0:02:56.6]} 9... Bb6 {[%clk 0:02:47.1]}
10. Rb1 {[%clk 0:02:49.5]} 10... Bg4 {[%clk 0:02:16.1]} 11. h3 {[%clk 0:02:49]}
11... Bh5 {[%clk 0:02:15.5]} 12. Qe1 {[%clk 0:02:47]} 12... Re8 {[%clk
0:02:10.5]} 13. Nh4 {[%clk 0:02:39.7]} 13... Qd7 {[%clk 0:02:04.6]} 14. Qe4
{[%clk 0:02:37.4]} 14... Rad8 {[%clk 0:01:56.6]} 15. a4 {[%clk 0:02:32.8]} 15...
Bg6 {[%clk 0:01:40.1]} 16. Nxg6 {[%clk 0:02:30.9]} 16... hxg6 {[%clk 0:01:41]}
17. Be3 {[%clk 0:02:23.8]} 17... Na5 {[%clk 0:01:18.7]} 18. Rb5 {[%clk
0:02:14.5]} 18... f5 {[%clk 0:01:12.7]} 19. Qh4 {[%clk 0:02:04.8]} 19... Bxe3
{[%clk 0:01:06.4]} 20. fxe3 {[%clk 0:02:03.8]} 20... b6 {[%clk 0:01:06.2]} 21.
c4 {[%clk 0:01:55.6]} 21... a6 {[%clk 0:01:04.5]} 22. Bd5+ {[%clk 0:01:54.3]}
22... Kf8 {[%clk 0:00:27]} 23. Qh8+ {[%clk 0:01:53.7]} 23... Ke7 {[%clk
0:00:26]} 24. Qxg7+ {[%clk 0:01:53.4]} 24... Kd6 {[%clk 0:00:26.4]} 25. Qxg6+
{[%clk 0:01:49.3]} 25... Re6 {[%clk 0:00:23.7]} 26. Bxe6 {[%clk 0:01:45.9]}
26... Qxe6 {[%clk 0:00:23.3]} 27. Rd5+ {[%clk 0:01:45.5]} 1-0

[Event "*** Titled Tuesday Blitz"]
[Site "Chess.com"]
[Date "2021.04.06"]
[Round "10"]
[White "MarcoRiehle"]
[Black "BigAl"]
[Result "1-0"]
[WhiteElo "2678"]
[BlackElo "2506"]
[TimeControl "180+1"]
[EndTime "11:54:11 PDT"]
[Termination "MarcoRiehle won by checkmate"]

1. e4 {[%clk 0:03:00.9]} 1... c6 {[%clk 0:03:00]} 2. c4 {[%clk 0:03:00.4]} 2...
e5 {[%clk 0:02:59.7]} 3. d4 {[%clk 0:02:59]} 3... d6 {[%clk 0:03:00.3]} 4. Nc3
{[%clk 0:02:58.5]} 4... Nd7 {[%clk 0:03:00]} 5. Be3 {[%clk 0:02:57]} 5... Ngf6
{[%clk 0:03:00.1]} 6. f3 {[%clk 0:02:54.9]} 6... g6 {[%clk 0:02:58.6]} 7. d5
{[%clk 0:02:53.8]} 7... cxd5 {[%clk 0:02:56.2]} 8. cxd5 {[%clk 0:02:53.2]} 8...
Bg7 {[%clk 0:02:54.6]} 9. Qd2 {[%clk 0:02:53.5]} 9... O-O {[%clk 0:02:54.7]} 10.
Bd3 {[%clk 0:02:52.2]} 10... Nh5 {[%clk 0:02:50.7]} 11. Nge2 {[%clk 0:02:46.7]}
11... f5 {[%clk 0:02:50.7]} 12. exf5 {[%clk 0:02:44.7]} 12... gxf5 {[%clk
0:02:50.6]} 13. O-O-O {[%clk 0:02:40.7]} 13... a6 {[%clk 0:02:15.5]} 14. Ng3
{[%clk 0:02:29.6]} 14... Nxg3 {[%clk 0:01:56.3]} 15. hxg3 {[%clk 0:02:29.1]}
15... Nc5 {[%clk 0:01:48.2]} 16. Bc2 {[%clk 0:02:24.7]} 16... b5 {[%clk
0:01:41.5]} 17. g4 {[%clk 0:02:24.9]} 17... b4 {[%clk 0:01:40.7]} 18. Ne2 {[%clk
0:02:24.8]} 18... Qa5 {[%clk 0:01:23.2]} 19. Kb1 {[%clk 0:02:23.6]} 19... Rb8
{[%clk 0:01:03.8]} 20. gxf5 {[%clk 0:02:22.3]} 20... Na4 {[%clk 0:00:47.6]} 21.
f6 {[%clk 0:02:17.9]} 21... Nc3+ {[%clk 0:00:42.3]} 22. Nxc3 {[%clk 0:02:17.8]}
22... bxc3 {[%clk 0:00:42.6]} 23. Bxh7+ {[%clk 0:02:17.6]} 23... Kf7 {[%clk
0:00:42.4]} 24. fxg7 {[%clk 0:02:16.4]} 24... Rxb2+ {[%clk 0:00:35.4]} 25. Qxb2
{[%clk 0:02:15.7]} 25... cxb2 {[%clk 0:00:36.3]} 26. gxf8=Q+ {[%clk 0:02:15.5]}
26... Kxf8 {[%clk 0:00:37.2]} 27. Bc2 {[%clk 0:02:15.5]} 27... e4 {[%clk
0:00:31.7]} 28. fxe4 {[%clk 0:02:12.4]} 28... Qc3 {[%clk 0:00:31.4]} 29. Bd4
{[%clk 0:02:10.8]} 29... Qg3 {[%clk 0:00:27.6]} 30. Rdf1+ {[%clk 0:02:10]} 30...
Ke7 {[%clk 0:00:21.6]} 31. Rh7+ {[%clk 0:02:09.4]} 31... Ke8 {[%clk 0:00:21.2]}
32. Rh8+ {[%clk 0:02:09.1]} 32... Ke7 {[%clk 0:00:21.1]} 33. Rh7+ {[%clk
0:02:08.7]} 33... Ke8 {[%clk 0:00:21.4]} 34. Ba4+ {[%clk 0:02:09.3]} 34... Bd7
{[%clk 0:00:17.3]} 35. Bxd7+ {[%clk 0:02:09]} 35... Kd8 {[%clk 0:00:17.8]} 36.
Rf8+ {[%clk 0:02:04.9]} 36... Kc7 {[%clk 0:00:17.9]} 37. Bg4# {[%clk 0:02:05.1]}
1-0

[Event "*** Titled Tuesday Blitz"]
[Site "Chess.com"]
[Date "2021.04.06"]
[Round "10"]
[White "LiverpooL174"]
[Black "Fandorine"]
[Result "0-1"]
[WhiteElo "2693"]
[BlackElo "2909"]
[TimeControl "180+1"]
[EndTime "11:54:16 PDT"]
[Termination "Fandorine won by resignation"]

1. Nf3 {[%clk 0:03:00.9]} 1... Nf6 {[%clk 0:02:59.8]} 2. b3 {[%clk 0:03:01.3]}
2... g6 {[%clk 0:02:58.5]} 3. Bb2 {[%clk 0:03:02.2]} 3... Bg7 {[%clk 0:02:58.8]}
4. g3 {[%clk 0:02:58.2]} 4... b6 {[%clk 0:02:58.5]} 5. Bg2 {[%clk 0:02:58.4]}
5... Bb7 {[%clk 0:02:59.4]} 6. O-O {[%clk 0:02:59]} 6... c5 {[%clk 0:03:00.1]}
7. c4 {[%clk 0:02:57.1]} 7... O-O {[%clk 0:03:00.6]} 8. Nc3 {[%clk 0:02:56.6]}
8... d6 {[%clk 0:03:00.9]} 9. d4 {[%clk 0:02:55.3]} 9... cxd4 {[%clk 0:03:00.9]}
10. Qxd4 {[%clk 0:02:54.5]} 10... Nbd7 {[%clk 0:03:01.4]} 11. Nd5 {[%clk
0:02:53]} 11... Rc8 {[%clk 0:02:58.2]} 12. Rac1 {[%clk 0:02:51.3]} 12... Nc5
{[%clk 0:02:43]} 13. Ba1 {[%clk 0:02:41.8]} 13... Ncd7 {[%clk 0:02:23.8]} 14.
Rfd1 {[%clk 0:02:38.9]} 14... Re8 {[%clk 0:02:22.5]} 15. e4 {[%clk 0:02:31.5]}
15... a6 {[%clk 0:02:05.1]} 16. a4 {[%clk 0:02:23.5]} 16... Nc5 {[%clk
0:02:01.4]} 17. Nd2 {[%clk 0:02:17.1]} 17... Nh5 {[%clk 0:01:46.2]} 18. Qe3
{[%clk 0:02:14.9]} 18... Bxa1 {[%clk 0:01:46.1]} 19. Rxa1 {[%clk 0:02:15.8]}
19... e6 {[%clk 0:01:46.4]} 20. Nc3 {[%clk 0:02:13]} 20... Nf6 {[%clk
0:01:34.3]} 21. h3 {[%clk 0:02:07.3]} 21... Qc7 {[%clk 0:01:34.1]} 22. Rac1
{[%clk 0:02:06.9]} 22... Red8 {[%clk 0:01:32.8]} 23. b4 {[%clk 0:02:01.5]} 23...
Ncd7 {[%clk 0:01:33]} 24. Nb3 {[%clk 0:02:02.1]} 24... Ne8 {[%clk 0:01:18.4]}
25. Bf1 {[%clk 0:01:50.9]} 25... Ne5 {[%clk 0:01:17]} 26. Nd2 {[%clk 0:01:47.9]}
26... Nc6 {[%clk 0:01:09.5]} 27. Rb1 {[%clk 0:01:45.3]} 27... Nf6 {[%clk
0:01:05.8]} 28. Kh2 {[%clk 0:01:44.6]} 28... h5 {[%clk 0:01:04.1]} 29. b5 {[%clk
0:01:33.9]} 29... Ne5 {[%clk 0:01:03.3]} 30. Be2 {[%clk 0:01:27.5]} 30... a5
{[%clk 0:01:02.5]} 31. f4 {[%clk 0:01:27.4]} 31... Ned7 {[%clk 0:01:01.3]} 32.
Nf3 {[%clk 0:01:24]} 32... Qc5 {[%clk 0:00:59.2]} 33. Qf2 {[%clk 0:01:15.1]}
33... Qxf2+ {[%clk 0:00:58.6]} 0-1

[Event "*** Titled Tuesday Blitz"]
[Site "Chess.com"]
[Date "2021.04.06"]
[Round "10"]
[White "chessprincesa1"]
[Black "HouseOfDurin"]
[Result "0-1"]
[WhiteElo "2212"]
[BlackElo "2162"]
[TimeControl "180+1"]
[EndTime "11:54:17 PDT"]
[Termination "HouseOfDurin won by resignation"]

1. d4 {[%clk 0:02:52.1]} 1... Nf6 {[%clk 0:02:58.8]} 2. c4 {[%clk 0:02:51.4]}
2... c5 {[%clk 0:02:59.3]} 3. d5 {[%clk 0:02:50.8]} 3... b5 {[%clk 0:02:59.9]}
4. cxb5 {[%clk 0:02:50.2]} 4... a6 {[%clk 0:03:00.1]} 5. bxa6 {[%clk 0:02:51.1]}
5... Bxa6 {[%clk 0:03:00.2]} 6. Nc3 {[%clk 0:02:48.4]} 6... d6 {[%clk
0:03:00.6]} 7. e4 {[%clk 0:02:41.5]} 7... Bxf1 {[%clk 0:03:01.5]} 8. Kxf1 {[%clk
0:02:41.6]} 8... Nbd7 {[%clk 0:03:01.8]} 9. g3 {[%clk 0:02:41]} 9... g6 {[%clk
0:03:02.3]} 10. Kg2 {[%clk 0:02:34.4]} 10... Bg7 {[%clk 0:03:02]} 11. a4 {[%clk
0:02:30.9]} 11... Qa5 {[%clk 0:02:59.3]} 12. Nf3 {[%clk 0:02:23.2]} 12... O-O
{[%clk 0:02:54]} 13. Re1 {[%clk 0:02:19]} 13... Qb4 {[%clk 0:02:53.5]} 14. Qc2
{[%clk 0:02:15.4]} 14... Ng4 {[%clk 0:02:48.5]} 15. Bd2 {[%clk 0:02:12.9]} 15...
Rfc8 {[%clk 0:02:43]} 16. Nb5 {[%clk 0:02:08.2]} 16... Qxb2 {[%clk 0:02:41.3]}
17. Qxb2 {[%clk 0:02:07]} 17... Bxb2 {[%clk 0:02:42.2]} 18. Rab1 {[%clk
0:02:07]} 18... Bf6 {[%clk 0:02:29.2]} 19. a5 {[%clk 0:02:06]} 19... Ra6 {[%clk
0:02:22.3]} 20. Na3 {[%clk 0:01:59.7]} 20... Nge5 {[%clk 0:02:16.9]} 21. Rb7
{[%clk 0:01:56.5]} 21... Nxf3 {[%clk 0:02:01.8]} 22. Kxf3 {[%clk 0:01:57.4]}
22... Ne5+ {[%clk 0:02:01.4]} 23. Ke2 {[%clk 0:01:55.5]} 23... c4 {[%clk
0:01:54.5]} 24. Rc1 {[%clk 0:01:43.4]} 24... Rc5 {[%clk 0:01:48.4]} 25. f4
{[%clk 0:01:38.6]} 25... Nd3 {[%clk 0:01:04.7]} 26. Rxc4 {[%clk 0:01:32.2]}
26... Rxc4 {[%clk 0:01:04.3]} 27. Nxc4 {[%clk 0:01:33.1]} 27... Nc5 {[%clk
0:01:02.5]} 28. e5 {[%clk 0:01:25.7]} 28... Nxb7 {[%clk 0:01:00.3]} 29. exf6
{[%clk 0:01:24.1]} 29... exf6 {[%clk 0:01:00.8]} 30. Bb4 {[%clk 0:01:23.4]}
30... Kf8 {[%clk 0:00:59.3]} 31. Kd3 {[%clk 0:01:23.4]} 31... Ke7 {[%clk
0:00:58.7]} 32. Nb6 {[%clk 0:01:23.2]} 32... Nxa5 {[%clk 0:00:55.7]} 33. Nc8+
{[%clk 0:01:20.3]} 33... Kd7 {[%clk 0:00:55.3]} 34. Nxd6 {[%clk 0:01:19.5]}
34... Rxd6 {[%clk 0:00:54.6]} 0-1

[Event "*** Titled Tuesday Blitz"]
[Site "Chess.com"]
[Date "2021.04.06"]
[Round "10"]
[White "mary-sanna"]
[Black "OlifantCZ"]
[Result "0-1"]
[WhiteElo "2117"]
[BlackElo "2290"]
[TimeControl "180+1"]
[EndTime "11:54:19 PDT"]
[Termination "OlifantCZ won by checkmate"]

1. d4 {[%clk 0:03:00.9]} 1... Nf6 {[%clk 0:02:59.3]} 2. Bf4 {[%clk 0:03:00.4]}
2... g6 {[%clk 0:02:59]} 3. Nc3 {[%clk 0:02:58.7]} 3... c5 {[%clk 0:02:54.1]} 4.
d5 {[%clk 0:02:53.9]} 4... d6 {[%clk 0:02:51.3]} 5. e4 {[%clk 0:02:53.5]} 5...
Bg7 {[%clk 0:02:51.5]} 6. Bb5+ {[%clk 0:02:51.5]} 6... Bd7 {[%clk 0:02:50.5]} 7.
a4 {[%clk 0:02:51.7]} 7... O-O {[%clk 0:02:49.9]} 8. h3 {[%clk 0:02:50.7]} 8...
Na6 {[%clk 0:02:50.1]} 9. Nf3 {[%clk 0:02:48.1]} 9... Nc7 {[%clk 0:02:50]} 10.
Bxd7 {[%clk 0:02:47]} 10... Nxd7 {[%clk 0:02:48.4]} 11. O-O {[%clk 0:02:45.3]}
11... a6 {[%clk 0:02:48.6]} 12. Re1 {[%clk 0:02:35.7]} 12... b5 {[%clk
0:02:45.9]} 13. axb5 {[%clk 0:02:34.5]} 13... axb5 {[%clk 0:02:45.4]} 14. e5
{[%clk 0:02:31.9]} 14... dxe5 {[%clk 0:02:38.1]} 15. Nxe5 {[%clk 0:02:29.4]}
15... Nxe5 {[%clk 0:02:35.4]} 16. Bxe5 {[%clk 0:02:27.1]} 16... Rxa1 {[%clk
0:02:35.2]} 17. Qxa1 {[%clk 0:02:25.8]} 17... Nxd5 {[%clk 0:02:35.2]} 18. Bxg7
{[%clk 0:02:22.2]} 18... Kxg7 {[%clk 0:02:34.7]} 19. Nxd5 {[%clk 0:02:17.6]}
19... Qxd5 {[%clk 0:02:34.2]} 20. Rxe7 {[%clk 0:02:16.7]} 20... Rd8 {[%clk
0:02:24.7]} 21. b4+ {[%clk 0:01:59.2]} 21... Qd4 {[%clk 0:02:16.3]} 22. Qxd4+
{[%clk 0:01:55.7]} 22... cxd4 {[%clk 0:02:14.1]} 23. Re5 {[%clk 0:01:41.7]}
23... Rc8 {[%clk 0:02:12.3]} 24. Rxb5 {[%clk 0:01:40.1]} 24... Rxc2 {[%clk
0:02:12.3]} 25. Rd5 {[%clk 0:01:39.1]} 25... Rc4 {[%clk 0:02:06.1]} 26. b5
{[%clk 0:01:38]} 26... Kf6 {[%clk 0:02:04.2]} 27. b6 {[%clk 0:01:37.1]} 27...
Ke6 {[%clk 0:02:04.5]} 28. b7 {[%clk 0:01:30.8]} 28... Rc1+ {[%clk 0:02:02.4]}
29. Kh2 {[%clk 0:01:30.4]} 29... Rb1 {[%clk 0:02:02.2]} 30. Rd8 {[%clk
0:01:29.5]} 30... Rxb7 {[%clk 0:02:00.1]} 31. Rxd4 {[%clk 0:01:29.6]} 31... Ke5
{[%clk 0:02:00.3]} 32. Rd2 {[%clk 0:01:26.6]} 32... f5 {[%clk 0:02:00.3]} 33.
Kg3 {[%clk 0:01:22.9]} 33... Rb3+ {[%clk 0:01:57.4]} 34. f3 {[%clk 0:01:22.4]}
34... g5 {[%clk 0:01:53.5]} 35. Kf2 {[%clk 0:01:20.3]} 35... h5 {[%clk
0:01:51.1]} 36. g3 {[%clk 0:01:19.7]} 36... h4 {[%clk 0:01:48.5]} 37. Re2+
{[%clk 0:01:16.4]} 37... Kf6 {[%clk 0:01:47.7]} 38. Kg2 {[%clk 0:01:11.9]} 38...
hxg3 {[%clk 0:01:39.7]} 39. Kxg3 {[%clk 0:01:11.8]} 39... Kg6 {[%clk 0:01:38.8]}
40. Re5 {[%clk 0:01:00.6]} 40... Rb2 {[%clk 0:01:38.2]} 41. Ra5 {[%clk
0:00:58.7]} 41... f4+ {[%clk 0:01:35.8]} 42. Kg4 {[%clk 0:00:58.2]} 42... Rg2#
{[%clk 0:01:35.7]} 0-1

[Event "*** Titled Tuesday Blitz"]
[Site "Chess.com"]
[Date "2021.04.06"]
[Round "10"]
[White "Genghis_K"]
[Black "Eltaj_Safarli"]
[Result "1-0"]
[WhiteElo "2960"]
[BlackElo "2914"]
[TimeControl "180+1"]
[EndTime "11:54:21 PDT"]
[Termination "Genghis_K won by resignation"]

1. e4 {[%clk 0:03:00.9]} 1... c5 {[%clk 0:02:57.9]} 2. Nf3 {[%clk 0:03:01.5]}
2... Nc6 {[%clk 0:02:57.9]} 3. d4 {[%clk 0:03:01.1]} 3... cxd4 {[%clk
0:02:58.8]} 4. Nxd4 {[%clk 0:03:02]} 4... Nf6 {[%clk 0:02:59.1]} 5. Nc3 {[%clk
0:03:02.6]} 5... e6 {[%clk 0:02:58.5]} 6. Ndb5 {[%clk 0:03:00.8]} 6... Bb4
{[%clk 0:02:58.6]} 7. a3 {[%clk 0:02:47.9]} 7... Bxc3+ {[%clk 0:02:38.6]} 8.
Nxc3 {[%clk 0:02:48.8]} 8... d5 {[%clk 0:02:39.3]} 9. Bd3 {[%clk 0:02:49]} 9...
dxe4 {[%clk 0:02:39.2]} 10. Nxe4 {[%clk 0:02:49.9]} 10... Nxe4 {[%clk
0:02:40.1]} 11. Bxe4 {[%clk 0:02:50.4]} 11... Qxd1+ {[%clk 0:02:41]} 12. Kxd1
{[%clk 0:02:51.3]} 12... Bd7 {[%clk 0:02:41.9]} 13. Be3 {[%clk 0:02:51]} 13...
O-O-O {[%clk 0:02:42.1]} 14. Kc1 {[%clk 0:02:51.3]} 14... Kc7 {[%clk 0:02:41.7]}
15. Rd1 {[%clk 0:02:50.6]} 15... e5 {[%clk 0:02:41.5]} 16. b4 {[%clk 0:02:49.5]}
16... f5 {[%clk 0:02:40.8]} 17. Bd5 {[%clk 0:02:47.5]} 17... f4 {[%clk
0:02:40.8]} 18. Bd2 {[%clk 0:02:24.4]} 18... Bg4 {[%clk 0:02:35.5]} 19. Bxc6
{[%clk 0:02:16.7]} 19... Bxd1 {[%clk 0:02:30.9]} 20. Be4 {[%clk 0:02:17.1]}
20... Bh5 {[%clk 0:02:02.8]} 21. Bc3 {[%clk 0:02:02.7]} 21... Rhe8 {[%clk
0:02:02.2]} 22. Kb2 {[%clk 0:02:00]} 22... Bg6 {[%clk 0:01:52.4]} 23. Re1 {[%clk
0:02:00]} 23... Bxe4 {[%clk 0:01:51.9]} 24. Rxe4 {[%clk 0:02:00.9]} 24... Kd6
{[%clk 0:01:52.7]} 25. a4 {[%clk 0:01:56.5]} 25... Kd5 {[%clk 0:01:49.8]} 26. f3
{[%clk 0:01:56.7]} 26... Rc8 {[%clk 0:01:50.1]} 27. Kb3 {[%clk 0:01:55.1]} 27...
Rc6 {[%clk 0:01:46.5]} 28. Bb2 {[%clk 0:01:52.5]} 28... Rh6 {[%clk 0:01:37.7]}
29. c4+ {[%clk 0:01:50.1]} 29... Kd6 {[%clk 0:01:38]} 30. h3 {[%clk 0:01:51]}
30... Rg6 {[%clk 0:01:38.2]} 31. Re2 {[%clk 0:01:47.6]} 31... e4 {[%clk
0:01:34.8]} 32. c5+ {[%clk 0:01:48.1]} 32... Kd5 {[%clk 0:01:25.7]} 33. Rd2+
{[%clk 0:01:48.4]} 33... Kc6 {[%clk 0:01:25.5]} 34. b5+ {[%clk 0:01:47.3]} 34...
Kxc5 {[%clk 0:01:14.4]} 35. Rd7 {[%clk 0:01:47.1]} 35... Kb6 {[%clk 0:00:44.7]}
36. Bd4+ {[%clk 0:01:47]} 36... Ka5 {[%clk 0:00:44.9]} 37. Rxb7 {[%clk
0:01:47.7]} 1-0

[Event "*** Titled Tuesday Blitz"]
[Site "Chess.com"]
[Date "2021.04.06"]
[Round "10"]
[White "IMAghasiyevKamal"]
[Black "731291"]
[Result "1-0"]
[WhiteElo "2550"]
[BlackElo "2662"]
[TimeControl "180+1"]
[EndTime "11:54:26 PDT"]
[Termination "IMAghasiyevKamal won by resignation"]

1. d4 {[%clk 0:02:57.6]} 1... Nf6 {[%clk 0:02:59.7]} 2. c4 {[%clk 0:02:55.4]}
2... e6 {[%clk 0:03:00.6]} 3. Nc3 {[%clk 0:02:50.6]} 3... Bb4 {[%clk 0:03:00.2]}
4. Nf3 {[%clk 0:02:47.2]} 4... O-O {[%clk 0:03:00]} 5. e3 {[%clk 0:02:41.1]}
5... b6 {[%clk 0:02:56.9]} 6. Bd3 {[%clk 0:02:41]} 6... Bb7 {[%clk 0:02:57]} 7.
O-O {[%clk 0:02:37.1]} 7... Bxc3 {[%clk 0:02:57.1]} 8. bxc3 {[%clk 0:02:36.7]}
8... Ne4 {[%clk 0:02:58]} 9. Qc2 {[%clk 0:02:35.5]} 9... f5 {[%clk 0:02:57.8]}
10. Nd2 {[%clk 0:02:30.2]} 10... Qh4 {[%clk 0:02:57.6]} 11. f3 {[%clk
0:02:28.6]} 11... Nf6 {[%clk 0:02:51.4]} 12. a4 {[%clk 0:02:23.1]} 12... Nc6
{[%clk 0:02:50.4]} 13. Rb1 {[%clk 0:02:20.4]} 13... Rae8 {[%clk 0:02:47.4]} 14.
Ba3 {[%clk 0:02:03.9]} 14... Rf7 {[%clk 0:02:41.2]} 15. e4 {[%clk 0:01:30.7]}
15... fxe4 {[%clk 0:02:32.8]} 16. Nxe4 {[%clk 0:01:30.6]} 16... Nxe4 {[%clk
0:02:24.9]} 17. fxe4 {[%clk 0:01:28.2]} 17... Rxf1+ {[%clk 0:02:20.5]} 18. Rxf1
{[%clk 0:01:27.6]} 18... d6 {[%clk 0:02:19]} 19. Qe2 {[%clk 0:00:53.6]} 19...
Rf8 {[%clk 0:02:05.6]} 20. Rxf8+ {[%clk 0:00:52.2]} 20... Kxf8 {[%clk
0:02:06.5]} 21. e5 {[%clk 0:00:52]} 21... Ke7 {[%clk 0:01:51.8]} 22. d5 {[%clk
0:00:46]} 22... Nd8 {[%clk 0:01:50.8]} 23. exd6+ {[%clk 0:00:43.2]} 23... cxd6
{[%clk 0:01:51.7]} 24. Qe5 {[%clk 0:00:41.9]} 24... Ke8 {[%clk 0:01:31.9]} 25.
Bxd6 {[%clk 0:00:39.3]} 25... Qg4 {[%clk 0:01:24.3]} 26. Be2 {[%clk 0:00:32.5]}
26... Qg6 {[%clk 0:01:18.8]} 27. Bh5 {[%clk 0:00:31.8]} 1-0

[Event "*** Titled Tuesday Blitz"]
[Site "Chess.com"]
[Date "2021.04.06"]
[Round "10"]
[White "anon102030"]
[Black "PolandHussars"]
[Result "1-0"]
[WhiteElo "2742"]
[BlackElo "2618"]
[TimeControl "180+1"]
[EndTime "11:54:32 PDT"]
[Termination "anon102030 won by resignation"]

1. e4 {[%clk 0:03:00.9]} 1... e5 {[%clk 0:02:58]} 2. Nf3 {[%clk 0:02:59.5]} 2...
Nc6 {[%clk 0:02:58.1]} 3. Bc4 {[%clk 0:02:59.2]} 3... Be7 {[%clk 0:02:53.6]} 4.
d4 {[%clk 0:02:57.6]} 4... exd4 {[%clk 0:02:51.6]} 5. c3 {[%clk 0:02:58]} 5...
d3 {[%clk 0:02:47.8]} 6. Qxd3 {[%clk 0:02:55.8]} 6... d6 {[%clk 0:02:47.8]} 7.
O-O {[%clk 0:02:52.8]} 7... Nf6 {[%clk 0:02:46.9]} 8. Bf4 {[%clk 0:02:44.7]}
8... O-O {[%clk 0:02:41.3]} 9. Nbd2 {[%clk 0:02:44.6]} 9... Bg4 {[%clk
0:02:31.6]} 10. h3 {[%clk 0:02:42.6]} 10... Bh5 {[%clk 0:02:32]} 11. Rfe1 {[%clk
0:02:27]} 11... Bg6 {[%clk 0:02:29.1]} 12. Nh4 {[%clk 0:02:10.5]} 12... Ne5
{[%clk 0:02:26.8]} 13. Bxe5 {[%clk 0:02:08.8]} 13... dxe5 {[%clk 0:02:27]} 14.
Nxg6 {[%clk 0:01:58]} 14... hxg6 {[%clk 0:02:27.9]} 15. Qe3 {[%clk 0:01:54.6]}
15... Qd6 {[%clk 0:02:19.9]} 16. Rad1 {[%clk 0:01:54.2]} 16... Rad8 {[%clk
0:02:16.5]} 17. Bb3 {[%clk 0:01:52.5]} 17... Qb6 {[%clk 0:02:09.3]} 18. Qe2
{[%clk 0:01:51.7]} 18... Qc5 {[%clk 0:01:56.6]} 19. Nf3 {[%clk 0:01:47.8]} 19...
Nh5 {[%clk 0:01:52]} 20. Kh2 {[%clk 0:01:36.1]} 20... Nf4 {[%clk 0:01:48.7]} 21.
Qc2 {[%clk 0:01:32.8]} 21... Rxd1 {[%clk 0:01:47.2]} 22. Rxd1 {[%clk 0:01:32.6]}
22... Rd8 {[%clk 0:01:47.3]} 23. Rxd8+ {[%clk 0:01:29.1]} 23... Bxd8 {[%clk
0:01:48.2]} 24. g3 {[%clk 0:01:28.1]} 24... Nh5 {[%clk 0:01:46.2]} 25. Kg2
{[%clk 0:01:26]} 25... Kf8 {[%clk 0:01:33.3]} 26. Qd3 {[%clk 0:01:24.7]} 26...
Qd6 {[%clk 0:01:20.4]} 27. Qb5 {[%clk 0:01:13.8]} 27... Nf6 {[%clk 0:01:14.4]}
28. Nxe5 {[%clk 0:01:00.6]} 28... Nxe4 {[%clk 0:01:11.4]} 29. Nxf7 {[%clk
0:00:59.3]} 29... Qd2 {[%clk 0:00:57.2]} 30. Qb4+ {[%clk 0:00:58.3]} 1-0

[Event "*** Titled Tuesday Blitz"]
[Site "Chess.com"]
[Date "2021.04.06"]
[Round "10"]
[White "Fortitudine"]
[Black "anpospan"]
[Result "0-1"]
[WhiteElo "2276"]
[BlackElo "2398"]
[TimeControl "180+1"]
[EndTime "11:54:37 PDT"]
[Termination "anpospan won by checkmate"]

1. c4 {[%clk 0:03:00.9]} 1... Nc6 {[%clk 0:02:59.3]} 2. g3 {[%clk 0:02:58.6]}
2... e5 {[%clk 0:02:59.6]} 3. Bg2 {[%clk 0:02:59]} 3... f5 {[%clk 0:03:00.1]} 4.
Nc3 {[%clk 0:02:57.3]} 4... Nf6 {[%clk 0:03:00.5]} 5. a3 {[%clk 0:02:41.4]} 5...
a5 {[%clk 0:02:59.2]} 6. d3 {[%clk 0:02:40.8]} 6... d6 {[%clk 0:02:59]} 7. e3
{[%clk 0:02:40.7]} 7... Be7 {[%clk 0:02:58.9]} 8. Nge2 {[%clk 0:02:41.2]} 8...
O-O {[%clk 0:02:58.6]} 9. O-O {[%clk 0:02:41.8]} 9... g5 {[%clk 0:02:58.3]} 10.
Nd5 {[%clk 0:02:31.9]} 10... Nxd5 {[%clk 0:02:57.5]} 11. cxd5 {[%clk 0:02:30.3]}
11... Nb8 {[%clk 0:02:57.1]} 12. f4 {[%clk 0:02:25.4]} 12... gxf4 {[%clk
0:02:52.7]} 13. gxf4 {[%clk 0:02:11.5]} 13... Nd7 {[%clk 0:02:50.9]} 14. Kh1
{[%clk 0:02:08.8]} 14... Kh8 {[%clk 0:02:50.6]} 15. b3 {[%clk 0:02:01.2]} 15...
Rg8 {[%clk 0:02:47.2]} 16. Rg1 {[%clk 0:01:56.4]} 16... Bf6 {[%clk 0:02:43.8]}
17. Bb2 {[%clk 0:01:53.3]} 17... exf4 {[%clk 0:02:32.9]} 18. Bxf6+ {[%clk
0:01:54.2]} 18... Qxf6 {[%clk 0:02:31.3]} 19. Nxf4 {[%clk 0:01:53.2]} 19... Ne5
{[%clk 0:02:30.4]} 20. Rc1 {[%clk 0:01:43.9]} 20... c5 {[%clk 0:02:24.5]} 21.
dxc6 {[%clk 0:00:57.1]} 21... Ng4 {[%clk 0:02:24.2]} 22. Qf3 {[%clk 0:00:47.7]}
22... Qh4 {[%clk 0:02:16.5]} 23. h3 {[%clk 0:00:40.1]} 23... Nf2+ {[%clk
0:02:15.9]} 24. Kh2 {[%clk 0:00:40.6]} 24... bxc6 {[%clk 0:01:57.8]} 25. Bh1
{[%clk 0:00:25.9]} 25... Ng4+ {[%clk 0:01:48.1]} 26. Rxg4 {[%clk 0:00:18.2]}
26... fxg4 {[%clk 0:01:46.9]} 27. Qxc6 {[%clk 0:00:16.4]} 27... gxh3 {[%clk
0:01:28.5]} 28. Qxa8 {[%clk 0:00:13.4]} 28... Qg3# {[%clk 0:01:26.3]} 0-1